[Event "*** Titled Tuesday 3|2 Blitz"]
[Site "Chess.com"]
[Date "2016.02.02"]
[Round "7"]
[White "LADIESGET2KNOWME"]
[Black "stefanodinn"]
[Result "0-1"]
[WhiteElo "2304"]
[BlackElo "2146"]
[TimeControl "180+2"]
[EndTime "12:32:30 PST"]
[Termination "stefanodinn won on time"]

1. d4 {[%clk 0:03:01.9]} 1... Nf6 {[%clk 0:02:56]} 2. Nc3 {[%clk 0:03:02.6]}
2... d5 {[%clk 0:02:54]} 3. Bg5 {[%clk 0:03:03.3]} 3... Nbd7 {[%clk 0:02:54.1]}
4. Nf3 {[%clk 0:03:03.7]} 4... h6 {[%clk 0:02:52.3]} 5. Bh4 {[%clk 0:03:04]}
5... e6 {[%clk 0:02:50.6]} 6. e3 {[%clk 0:03:05.2]} 6... Be7 {[%clk 0:02:48.4]}
7. Bd3 {[%clk 0:03:06.4]} 7... O-O {[%clk 0:02:48.6]} 8. Qe2 {[%clk 0:03:07.7]}
8... c5 {[%clk 0:02:48]} 9. dxc5 {[%clk 0:03:07.3]} 9... Nxc5 {[%clk 0:02:48.2]}
10. O-O {[%clk 0:03:07.6]} 10... b6 {[%clk 0:02:43.3]} 11. Rad1 {[%clk
0:02:28.6]} 11... Bb7 {[%clk 0:02:39.7]} 12. Nd4 {[%clk 0:02:23.5]} 12... a6
{[%clk 0:02:23]} 13. a4 {[%clk 0:02:19.1]} 13... Rc8 {[%clk 0:02:04.6]} 14. Nf3
{[%clk 0:02:05.2]} 14... Qc7 {[%clk 0:01:55.4]} 15. h3 {[%clk 0:01:47.8]} 15...
Rfd8 {[%clk 0:01:51.6]} 16. Nh2 {[%clk 0:01:26]} 16... Nxd3 {[%clk 0:01:38.5]}
17. cxd3 {[%clk 0:01:24.7]} 17... d4 {[%clk 0:01:30.1]} 18. Bg3 {[%clk
0:01:10.7]} 18... Bd6 {[%clk 0:01:24.6]} 19. Bxd6 {[%clk 0:01:09.9]} 19... Qxd6
{[%clk 0:01:23.7]} 20. Ne4 {[%clk 0:01:09.7]} 20... Nxe4 {[%clk 0:01:21.8]} 21.
dxe4 {[%clk 0:01:11.5]} 21... Qb4 {[%clk 0:01:12.1]} 22. exd4 {[%clk 0:01:01.5]}
22... Rxd4 {[%clk 0:01:11.8]} 23. f3 {[%clk 0:00:51.6]} 23... Rcd8 {[%clk
0:01:03.7]} 24. Ng4 {[%clk 0:00:48.4]} 24... Qxa4 {[%clk 0:00:59.7]} 25. Rxd4
{[%clk 0:00:37.1]} 25... Qxd4+ {[%clk 0:00:59.5]} 26. Kh1 {[%clk 0:00:36.2]}
26... Qd3 {[%clk 0:00:56.4]} 27. Qf2 {[%clk 0:00:35.9]} 27... Qd4 {[%clk
0:00:48.6]} 28. Qg3 {[%clk 0:00:31.1]} 28... Kf8 {[%clk 0:00:18.3]} 29. Rc1
{[%clk 0:00:26.9]} 29... h5 {[%clk 0:00:10.7]} 30. Rc7 {[%clk 0:00:14.8]} 30...
hxg4 {[%clk 0:00:09.4]} 31. Rxb7 {[%clk 0:00:15.6]} 31... Qd1+ {[%clk
0:00:07.6]} 32. Kh2 {[%clk 0:00:15.9]} 32... gxf3 {[%clk 0:00:08.4]} 33. Qc7
{[%clk 0:00:08.6]} 33... Qd6+ {[%clk 0:00:08.5]} 34. Qxd6+ {[%clk 0:00:09.9]}
34... Rxd6 {[%clk 0:00:09.4]} 35. gxf3 {[%clk 0:00:09.7]} 35... g5 {[%clk
0:00:08.5]} 36. Kg3 {[%clk 0:00:09.8]} 36... Kg7 {[%clk 0:00:09.3]} 37. b4
{[%clk 0:00:09.1]} 37... b5 {[%clk 0:00:08.4]} 38. Ra7 {[%clk 0:00:09.4]} 38...
Rd4 {[%clk 0:00:07.5]} 39. Rxa6 {[%clk 0:00:07.7]} 39... Rxb4 {[%clk 0:00:08.9]}
40. h4 {[%clk 0:00:08.8]} 40... gxh4+ {[%clk 0:00:09.3]} 41. Kxh4 {[%clk
0:00:10.7]} 41... Rb3 {[%clk 0:00:07.5]} 42. Kg4 {[%clk 0:00:11.6]} 42... b4
{[%clk 0:00:08]} 43. Kf4 {[%clk 0:00:10.6]} 43... Rb1 {[%clk 0:00:08.5]} 44. Rb6
{[%clk 0:00:09.7]} 44... b3 {[%clk 0:00:09.3]} 45. Ke5 {[%clk 0:00:07.9]} 45...
Kg6 {[%clk 0:00:09.9]} 46. f4 {[%clk 0:00:09]} 46... Kg7 {[%clk 0:00:10]} 47. f5
{[%clk 0:00:03.6]} 47... exf5 {[%clk 0:00:10.9]} 48. Kxf5 {[%clk 0:00:05.1]}
48... b2 {[%clk 0:00:07.8]} 49. Ke5 {[%clk 0:00:06.7]} 49... Kh7 {[%clk
0:00:07.8]} 50. Rb5 {[%clk 0:00:05.9]} 50... Kg6 {[%clk 0:00:08.3]} 51. Rb6+
{[%clk 0:00:06.9]} 51... Kg5 {[%clk 0:00:09.1]} 52. Rb7 {[%clk 0:00:07]} 52...
f6+ {[%clk 0:00:09.1]} 53. Ke6 {[%clk 0:00:08.5]} 53... Kg4 {[%clk 0:00:08.7]}
54. Rb4 {[%clk 0:00:04.6]} 54... Kg5 {[%clk 0:00:07.8]} 55. Rb7 {[%clk
0:00:03.8]} 55... Kf4 {[%clk 0:00:08.2]} 56. Rb4 {[%clk 0:00:05.2]} 56... Ke3
{[%clk 0:00:08.9]} 57. e5 {[%clk 0:00:05.6]} 57... fxe5 {[%clk 0:00:09]} 58.
Kxe5 {[%clk 0:00:07.5]} 58... Kd3 {[%clk 0:00:09.8]} 59. Rd4+ {[%clk 0:00:07]}
59... Kc3 {[%clk 0:00:10.2]} 60. Kd5 {[%clk 0:00:07.8]} 60... Rc1 {[%clk
0:00:09.6]} 0-1

[Event "*** Titled Tuesday 3|2 Blitz"]
[Site "Chess.com"]
[Date "2016.02.02"]
[Round "7"]
[White "MateusViageiro"]
[Black "Spinaltap"]
[Result "1-0"]
[WhiteElo "2177"]
[BlackElo "2362"]
[TimeControl "180+2"]
[EndTime "12:32:55 PST"]
[Termination "MateusViageiro won by resignation"]

1. e4 {[%clk 0:03:01.9]} 1... c6 {[%clk 0:02:55.5]} 2. d4 {[%clk 0:03:01.8]}
2... d5 {[%clk 0:02:56.4]} 3. Nc3 {[%clk 0:03:03]} 3... dxe4 {[%clk 0:02:56.8]}
4. Nxe4 {[%clk 0:03:03.5]} 4... Bf5 {[%clk 0:02:57.7]} 5. Ng3 {[%clk 0:03:04]}
5... Bg6 {[%clk 0:02:58.7]} 6. Nf3 {[%clk 0:03:05.4]} 6... Nd7 {[%clk
0:02:58.2]} 7. h4 {[%clk 0:03:05.9]} 7... h6 {[%clk 0:02:59.1]} 8. h5 {[%clk
0:03:03.7]} 8... Bh7 {[%clk 0:03:00]} 9. Bd3 {[%clk 0:03:05]} 9... Bxd3 {[%clk
0:03:00.4]} 10. Qxd3 {[%clk 0:03:05.1]} 10... e6 {[%clk 0:03:00.4]} 11. Bd2
{[%clk 0:03:05.6]} 11... Ngf6 {[%clk 0:03:00.9]} 12. O-O-O {[%clk 0:03:05.7]}
12... Be7 {[%clk 0:03:01.6]} 13. Kb1 {[%clk 0:03:05.8]} 13... O-O {[%clk
0:03:00.4]} 14. Ne4 {[%clk 0:03:06]} 14... Nxe4 {[%clk 0:03:00.5]} 15. Qxe4
{[%clk 0:03:06.7]} 15... Nf6 {[%clk 0:03:01.5]} 16. Qe2 {[%clk 0:03:07]} 16...
Qd5 {[%clk 0:03:00.4]} 17. Rde1 {[%clk 0:02:55.1]} 17... c5 {[%clk 0:02:43.5]}
18. dxc5 {[%clk 0:02:51.9]} 18... Bxc5 {[%clk 0:02:40]} 19. Bc3 {[%clk
0:02:45.1]} 19... Rad8 {[%clk 0:02:06.6]} 20. Bxf6 {[%clk 0:02:43.4]} 20... gxf6
{[%clk 0:02:07.2]} 21. Rd1 {[%clk 0:02:42.6]} 21... Qf5 {[%clk 0:02:02.8]} 22.
g4 {[%clk 0:02:38.1]} 22... Qf4 {[%clk 0:01:58.3]} 23. a3 {[%clk 0:02:29.7]}
23... a6 {[%clk 0:01:32]} 24. Rhf1 {[%clk 0:02:16.9]} 24... Kh8 {[%clk 0:01:27]}
25. Nd2 {[%clk 0:02:10]} 25... f5 {[%clk 0:01:15.3]} 26. f3 {[%clk 0:02:03.9]}
26... Rd5 {[%clk 0:01:12.4]} 27. Nb3 {[%clk 0:02:02.2]} 27... Rxd1+ {[%clk
0:00:51.7]} 28. Qxd1 {[%clk 0:01:58.7]} 28... Be7 {[%clk 0:00:42.5]} 29. gxf5
{[%clk 0:01:59]} 29... Qxf5 {[%clk 0:00:43.2]} 30. f4 {[%clk 0:01:59.5]} 30...
Bf6 {[%clk 0:00:43.4]} 31. Qf3 {[%clk 0:01:57]} 31... Rc8 {[%clk 0:00:34.1]} 32.
Rf2 {[%clk 0:01:50.1]} 32... Rc6 {[%clk 0:00:31.4]} 33. Rg2 {[%clk 0:01:47.2]}
33... Bg7 {[%clk 0:00:23]} 34. Qg3 {[%clk 0:01:21]} 34... Qh7 {[%clk 0:00:23.5]}
35. Rd2 {[%clk 0:01:06.4]} 35... Rc8 {[%clk 0:00:24.3]} 36. Qf3 {[%clk 0:01:04]}
36... b5 {[%clk 0:00:16.2]} 37. Qb7 {[%clk 0:00:58.4]} 37... Rf8 {[%clk
0:00:17.2]} 38. Qxa6 {[%clk 0:00:58.8]} 38... Qf5 {[%clk 0:00:18.1]} 39. Qd6
{[%clk 0:00:58.8]} 39... Qxh5 {[%clk 0:00:17.8]} 40. Nc5 {[%clk 0:00:58.4]}
40... Qf5 {[%clk 0:00:13.2]} 41. Nd7 {[%clk 0:00:57.9]} 41... Rg8 {[%clk
0:00:14]} 42. Ne5 {[%clk 0:00:54.4]} 42... h5 {[%clk 0:00:14.3]} 43. Qe7 {[%clk
0:00:44.4]} 43... Bxe5 {[%clk 0:00:13.7]} 44. fxe5 {[%clk 0:00:43.7]} 44... Rg7
{[%clk 0:00:10]} 45. Qf6 {[%clk 0:00:41.9]} 45... Qxf6 {[%clk 0:00:09.2]} 46.
exf6 {[%clk 0:00:42.8]} 46... Rg6 {[%clk 0:00:10.7]} 47. Rh2 {[%clk 0:00:41.1]}
47... Rh6 {[%clk 0:00:11.8]} 48. Rh4 {[%clk 0:00:39.3]} 48... Kh7 {[%clk
0:00:12.6]} 49. c4 {[%clk 0:00:37.8]} 49... bxc4 {[%clk 0:00:13.1]} 50. a4
{[%clk 0:00:38.8]} 50... Kg6 {[%clk 0:00:12.9]} 51. a5 {[%clk 0:00:39]} 51...
Rh8 {[%clk 0:00:13.1]} 52. Rxc4 {[%clk 0:00:36.9]} 52... h4 {[%clk 0:00:14.4]}
53. Rc1 {[%clk 0:00:37.6]} 53... h3 {[%clk 0:00:15.7]} 54. Ka2 {[%clk
0:00:37.2]} 54... Kxf6 {[%clk 0:00:16.9]} 55. b4 {[%clk 0:00:37.6]} 55... Ke7
{[%clk 0:00:17.6]} 56. Kb3 {[%clk 0:00:37.9]} 56... h2 {[%clk 0:00:19.1]} 57.
Rh1 {[%clk 0:00:37.8]} 57... Kd6 {[%clk 0:00:20.7]} 58. Ka4 {[%clk 0:00:38.2]}
58... Kc7 {[%clk 0:00:22]} 59. b5 {[%clk 0:00:35.7]} 59... Rh4+ {[%clk
0:00:22.6]} 60. Kb3 {[%clk 0:00:36.1]} 60... e5 {[%clk 0:00:24]} 61. Kc3 {[%clk
0:00:33.5]} 61... f5 {[%clk 0:00:25.2]} 62. Kd3 {[%clk 0:00:34.5]} 62... Kd6
{[%clk 0:00:25.8]} 63. b6 {[%clk 0:00:32.5]} 63... Kc6 {[%clk 0:00:26.9]} 64.
Ke3 {[%clk 0:00:33]} 64... Kb7 {[%clk 0:00:23.6]} 65. Kf3 {[%clk 0:00:33.1]}
65... Ka6 {[%clk 0:00:24.6]} 66. Kg3 {[%clk 0:00:33.9]} 66... Rg4+ {[%clk
0:00:25.4]} 67. Kxh2 {[%clk 0:00:34.3]} 67... Kxa5 {[%clk 0:00:24.4]} 68. b7
{[%clk 0:00:32.6]} 68... Rb4 {[%clk 0:00:24.3]} 69. Ra1+ {[%clk 0:00:31.1]} 1-0

[Event "*** Titled Tuesday 3|2 Blitz"]
[Site "Chess.com"]
[Date "2016.02.02"]
[Round "7"]
[White "DanielRensch"]
[Black "KyronGriffith"]
[Result "1/2-1/2"]
[WhiteElo "2335"]
[BlackElo "2261"]
[TimeControl "180+2"]
[EndTime "12:33:25 PST"]
[Termination "Game drawn by repetition"]

1. e4 {[%clk 0:03:01.9]} 1... c5 {[%clk 0:02:47.8]} 2. Nf3 {[%clk 0:03:02.6]}
2... d6 {[%clk 0:02:48.9]} 3. d4 {[%clk 0:03:03.4]} 3... cxd4 {[%clk 0:02:50.8]}
4. Nxd4 {[%clk 0:03:05.3]} 4... Nf6 {[%clk 0:02:52.5]} 5. Nc3 {[%clk 0:03:06.1]}
5... a6 {[%clk 0:02:54.1]} 6. Be3 {[%clk 0:03:06.9]} 6... e5 {[%clk 0:02:54.3]}
7. Nb3 {[%clk 0:03:07.6]} 7... Be6 {[%clk 0:02:55.1]} 8. f3 {[%clk 0:03:04.1]}
8... Be7 {[%clk 0:02:55.9]} 9. Qd2 {[%clk 0:03:04.5]} 9... O-O {[%clk
0:02:56.3]} 10. O-O-O {[%clk 0:03:04.9]} 10... Nbd7 {[%clk 0:02:57.9]} 11. g4
{[%clk 0:03:05.4]} 11... b5 {[%clk 0:02:59.6]} 12. g5 {[%clk 0:03:03.4]} 12...
b4 {[%clk 0:03:01]} 13. gxf6 {[%clk 0:03:04.5]} 13... bxc3 {[%clk 0:03:01.2]}
14. Qxc3 {[%clk 0:03:06.4]} 14... Nxf6 {[%clk 0:02:53.3]} 15. Na5 {[%clk
0:03:07.3]} 15... Qd7 {[%clk 0:02:39.5]} 16. Nc6 {[%clk 0:03:06.3]} 16... Rfc8
{[%clk 0:02:38.5]} 17. Nxe7+ {[%clk 0:03:06.2]} 17... Qxe7 {[%clk 0:02:40.4]}
18. Qa3 {[%clk 0:03:07.6]} 18... Qc7 {[%clk 0:02:13.7]} 19. Bd3 {[%clk
0:03:03.2]} 19... d5 {[%clk 0:02:12.1]} 20. Bg5 {[%clk 0:03:00.3]} 20... dxe4
{[%clk 0:02:03.5]} 21. fxe4 {[%clk 0:02:50.1]} 21... Nh5 {[%clk 0:02:00]} 22.
Rhg1 {[%clk 0:02:48]} 22... Nf4 {[%clk 0:01:46.4]} 23. Kb1 {[%clk 0:02:32.8]}
23... Nh3 {[%clk 0:01:37.5]} 24. Bf6 {[%clk 0:02:26.8]} 24... Nxg1 {[%clk
0:01:35.3]} 25. Rxg1 {[%clk 0:02:28.7]} 25... g6 {[%clk 0:01:33.2]} 26. Rg5
{[%clk 0:00:55.2]} 26... Re8 {[%clk 0:01:07.1]} 27. h4 {[%clk 0:00:32.7]} 27...
h6 {[%clk 0:00:55.3]} 28. Rg3 {[%clk 0:00:31]} 28... Qb6 {[%clk 0:00:30.9]} 29.
Qc3 {[%clk 0:00:16.3]} 29... Bxa2+ {[%clk 0:00:29.7]} 30. Kxa2 {[%clk
0:00:15.7]} 30... Qxf6 {[%clk 0:00:31.6]} 31. h5 {[%clk 0:00:15.5]} 31... g5
{[%clk 0:00:32]} 32. Bc4 {[%clk 0:00:16.1]} 32... Rac8 {[%clk 0:00:30.5]} 33.
Rf3 {[%clk 0:00:15.1]} 33... Rxc4 {[%clk 0:00:17.7]} 34. Rxf6 {[%clk 0:00:15.8]}
34... Rxc3 {[%clk 0:00:19.3]} 35. bxc3 {[%clk 0:00:17.7]} 35... Re6 {[%clk
0:00:20.7]} 36. Rf3 {[%clk 0:00:17.2]} 36... Rc6 {[%clk 0:00:21.5]} 37. Kb3
{[%clk 0:00:17.7]} 37... Kf8 {[%clk 0:00:22.3]} 38. c4 {[%clk 0:00:18.5]} 38...
Ke7 {[%clk 0:00:23.8]} 39. Kb4 {[%clk 0:00:20]} 39... Ke6 {[%clk 0:00:24.1]} 40.
c5 {[%clk 0:00:20.5]} 40... Rc8 {[%clk 0:00:24.4]} 41. Kc4 {[%clk 0:00:19.6]}
41... g4 {[%clk 0:00:25.5]} 42. Rb3 {[%clk 0:00:20.1]} 42... Kf6 {[%clk
0:00:19.1]} 43. Kd5 {[%clk 0:00:18.9]} 43... Kg5 {[%clk 0:00:18.7]} 44. c6
{[%clk 0:00:19.8]} 44... Kf4 {[%clk 0:00:18.5]} 45. Rb7 {[%clk 0:00:18]} 45...
f6 {[%clk 0:00:15.6]} 46. Rf7 {[%clk 0:00:18]} 46... g3 {[%clk 0:00:15.3]} 47.
Rxf6+ {[%clk 0:00:19.1]} 47... Ke3 {[%clk 0:00:12.1]} 48. Kxe5 {[%clk
0:00:13.1]} 48... Rg8 {[%clk 0:00:12.4]} 49. Rg6 {[%clk 0:00:11]} 49... Rxg6
{[%clk 0:00:12]} 50. hxg6 {[%clk 0:00:12.9]} 50... g2 {[%clk 0:00:13.9]} 51. c7
{[%clk 0:00:14.4]} 51... g1=Q {[%clk 0:00:15.8]} 52. c8=Q {[%clk 0:00:15.9]}
52... Qxg6 {[%clk 0:00:15.9]} 53. Qh3+ {[%clk 0:00:15.8]} 53... Kd2 {[%clk
0:00:16.8]} 54. Qh2+ {[%clk 0:00:15]} 54... Kc3 {[%clk 0:00:16.5]} 55. Qe2
{[%clk 0:00:09.8]} 55... a5 {[%clk 0:00:15.8]} 56. Qd3+ {[%clk 0:00:09.5]} 56...
Kb2 {[%clk 0:00:15.8]} 57. Qb3+ {[%clk 0:00:09.9]} 57... Kc1 {[%clk 0:00:17.2]}
58. c4 {[%clk 0:00:10.7]} 58... Qg5+ {[%clk 0:00:17.1]} 59. Kd6 {[%clk
0:00:09.9]} 59... Qd8+ {[%clk 0:00:18.2]} 60. Kc5 {[%clk 0:00:08.5]} 60... Qc7+
{[%clk 0:00:17.5]} 61. Kb5 {[%clk 0:00:08.9]} 61... Qb7+ {[%clk 0:00:16.2]} 62.
Ka4 {[%clk 0:00:09.7]} 62... Qxe4 {[%clk 0:00:15.7]} 63. Kxa5 {[%clk 0:00:08.9]}
63... Qe5+ {[%clk 0:00:13.7]} 64. Qb5 {[%clk 0:00:06.9]} 64... Qc7+ {[%clk
0:00:13.6]} 65. Kb4 {[%clk 0:00:04.3]} 65... Qe7+ {[%clk 0:00:13.7]} 66. c5
{[%clk 0:00:05.4]} 66... h5 {[%clk 0:00:13.5]} 67. Qc4+ {[%clk 0:00:06.3]} 67...
Kd2 {[%clk 0:00:13.5]} 68. Qd5+ {[%clk 0:00:07]} 68... Kc2 {[%clk 0:00:10.6]}
69. Qxh5 {[%clk 0:00:08.9]} 69... Qe4+ {[%clk 0:00:11.9]} 70. Kb5 {[%clk
0:00:07.3]} 70... Qb7+ {[%clk 0:00:13.1]} 71. Kc4 {[%clk 0:00:07.5]} 71... Qe4+
{[%clk 0:00:14.3]} 72. Kb5 {[%clk 0:00:08.5]} 72... Qb7+ {[%clk 0:00:15.9]} 73.
Ka5 {[%clk 0:00:07.7]} 73... Qa7+ {[%clk 0:00:15]} 74. Kb4 {[%clk 0:00:09]}
74... Qb7+ {[%clk 0:00:15.6]} 75. Ka5 {[%clk 0:00:08.8]} 75... Qa7+ {[%clk
0:00:16.8]} 76. Kb5 {[%clk 0:00:09.7]} 76... Qb7+ {[%clk 0:00:18.4]} 77. Ka5
{[%clk 0:00:10.8]} 77... Qa7+ {[%clk 0:00:19.6]} 78. Kb5 {[%clk 0:00:12]} 78...
Qb7+ {[%clk 0:00:20.9]} 1/2-1/2

[Event "*** Titled Tuesday 3|2 Blitz"]
[Site "Chess.com"]
[Date "2016.02.02"]
[Round "8"]
[White "ftorodent"]
[Black "Hafez_Bakr"]
[Result "1-0"]
[WhiteElo "2322"]
[BlackElo "1753"]
[TimeControl "180+2"]
[EndTime "12:42:41 PST"]
[Termination "ftorodent won by resignation"]

1. d4 {[%clk 0:03:01.9]} 1... Nf6 {[%clk 0:02:32]} 2. c4 {[%clk 0:03:01.8]} 2...
g6 {[%clk 0:02:32.9]} 3. Nc3 {[%clk 0:03:01.4]} 3... Bg7 {[%clk 0:02:33.9]} 4.
e4 {[%clk 0:03:02.1]} 4... d6 {[%clk 0:02:35.2]} 5. Nf3 {[%clk 0:03:03.1]} 5...
O-O {[%clk 0:02:35.9]} 6. Be2 {[%clk 0:03:04.1]} 6... e5 {[%clk 0:02:37.2]} 7.
O-O {[%clk 0:03:05]} 7... Nc6 {[%clk 0:02:38.3]} 8. d5 {[%clk 0:03:06]} 8... Ne7
{[%clk 0:02:39.4]} 9. Ne1 {[%clk 0:03:07.6]} 9... Ne8 {[%clk 0:02:39.7]} 10. Nd3
{[%clk 0:03:07]} 10... f5 {[%clk 0:02:39.4]} 11. Bd2 {[%clk 0:03:08.4]} 11... a6
{[%clk 0:02:39.2]} 12. Rc1 {[%clk 0:03:07.7]} 12... f4 {[%clk 0:02:33.2]} 13. c5
{[%clk 0:03:06.7]} 13... g5 {[%clk 0:02:27.1]} 14. a4 {[%clk 0:03:03.7]} 14...
Rf6 {[%clk 0:02:27]} 15. a5 {[%clk 0:03:00.5]} 15... Rg6 {[%clk 0:02:27.4]} 16.
Bh5 {[%clk 0:02:53]} 16... Rh6 {[%clk 0:02:20.7]} 17. Bg4 {[%clk 0:02:44.8]}
17... Nf6 {[%clk 0:02:18.9]} 18. Bxc8 {[%clk 0:02:40.1]} 18... Rxc8 {[%clk
0:02:16.3]} 19. f3 {[%clk 0:02:41]} 19... Qe8 {[%clk 0:02:14.5]} 20. h3 {[%clk
0:02:40.5]} 20... Nh5 {[%clk 0:02:13.3]} 21. Be1 {[%clk 0:02:37.9]} 21... Ng6
{[%clk 0:02:10.6]} 22. Ne2 {[%clk 0:02:32.2]} 22... dxc5 {[%clk 0:02:03.6]} 23.
Nxc5 {[%clk 0:02:30.2]} 23... Qb5 {[%clk 0:01:43.9]} 24. Qd3 {[%clk 0:02:22.2]}
24... Qxd3 {[%clk 0:01:29.7]} 25. Nxd3 {[%clk 0:02:22.2]} 25... Nh4 {[%clk
0:01:28.2]} 26. Nc5 {[%clk 0:02:13.5]} 26... Rg6 {[%clk 0:01:21.7]} 27. Nxb7
{[%clk 0:02:09.9]} 27... Nf6 {[%clk 0:01:14.1]} 28. Bxh4 {[%clk 0:02:06]} 28...
g4 {[%clk 0:01:16]} 29. hxg4 {[%clk 0:02:03.6]} 1-0

[Event "*** Titled Tuesday 3|2 Blitz"]
[Site "Chess.com"]
[Date "2016.02.02"]
[Round "8"]
[White "SabinoBrunello"]
[Black "Matibar"]
[Result "1/2-1/2"]
[WhiteElo "2584"]
[BlackElo "2558"]
[TimeControl "180+2"]
[EndTime "12:42:49 PST"]
[Termination "Game drawn by agreement"]

1. d4 {[%clk 0:03:01.9]} 1... Nf6 {[%clk 0:02:58.6]} 2. c4 {[%clk 0:03:01.6]}
2... e6 {[%clk 0:02:59.4]} 3. Nf3 {[%clk 0:03:02.2]} 3... Bb4+ {[%clk
0:02:59.7]} 4. Bd2 {[%clk 0:03:02.5]} 4... c5 {[%clk 0:03:00.1]} 5. Bxb4 {[%clk
0:02:53.1]} 5... cxb4 {[%clk 0:03:01.2]} 6. e3 {[%clk 0:02:54.1]} 6... O-O
{[%clk 0:03:00]} 7. Be2 {[%clk 0:02:51.3]} 7... a5 {[%clk 0:02:55.2]} 8. O-O
{[%clk 0:02:51]} 8... b6 {[%clk 0:02:53.7]} 9. a3 {[%clk 0:02:51]} 9... Na6
{[%clk 0:02:54.1]} 10. axb4 {[%clk 0:02:51.5]} 10... Nxb4 {[%clk 0:02:54.8]} 11.
Nc3 {[%clk 0:02:49.4]} 11... Bb7 {[%clk 0:02:55]} 12. Ne1 {[%clk 0:02:38.3]}
12... d5 {[%clk 0:02:45.9]} 13. cxd5 {[%clk 0:02:38.5]} 13... Nfxd5 {[%clk
0:02:43.6]} 14. Nxd5 {[%clk 0:02:37.8]} 14... Bxd5 {[%clk 0:02:23.2]} 15. Bf3
{[%clk 0:02:35.1]} 15... Rc8 {[%clk 0:02:22.6]} 16. Bxd5 {[%clk 0:02:35.3]}
16... Qxd5 {[%clk 0:02:24.5]} 17. Nd3 {[%clk 0:02:31.4]} 17... Nxd3 {[%clk
0:02:22.9]} 18. Qxd3 {[%clk 0:02:32]} 18... Rc4 {[%clk 0:02:24.3]} 19. Rad1
{[%clk 0:02:10.1]} 19... f5 {[%clk 0:02:11.8]} 20. f3 {[%clk 0:02:10.4]} 20...
Rb4 {[%clk 0:02:12.9]} 21. Rd2 {[%clk 0:02:08.3]} 21... Rb3 {[%clk 0:02:10.1]}
22. Qe2 {[%clk 0:02:08.4]} 22... Qb5 {[%clk 0:02:07.3]} 23. Qxb5 {[%clk
0:02:03.8]} 23... Rxb5 {[%clk 0:02:09.2]} 24. Rc1 {[%clk 0:02:05.1]} 24... Rd8
{[%clk 0:02:08.4]} 25. Kf2 {[%clk 0:01:50.5]} 25... Rd7 {[%clk 0:02:07.2]} 26.
e4 {[%clk 0:01:48.4]} 26... fxe4 {[%clk 0:02:06.7]} 27. fxe4 {[%clk 0:01:49.3]}
27... Rb3 {[%clk 0:02:03.6]} 28. Ke2 {[%clk 0:01:48.3]} 28... Kf7 {[%clk
0:02:04.1]} 29. Rc6 {[%clk 0:01:46.4]} 29... a4 {[%clk 0:02:00.6]} 30. d5 {[%clk
0:01:46.5]} 30... exd5 {[%clk 0:02:00.5]} 31. exd5 {[%clk 0:01:47.5]} 31... b5
{[%clk 0:01:59.7]} 32. Rb6 {[%clk 0:01:45.6]} 1/2-1/2

[Event "*** Titled Tuesday 3|2 Blitz"]
[Site "Chess.com"]
[Date "2016.02.02"]
[Round "8"]
[White "Parthenope"]
[Black "ethylalcohol"]
[Result "0-1"]
[WhiteElo "1672"]
[BlackElo "1737"]
[TimeControl "180+2"]
[EndTime "12:43:11 PST"]
[Termination "ethylalcohol won by resignation"]

1. e4 {[%clk 0:03:01.9]} 1... e5 {[%clk 0:02:59.9]} 2. Nf3 {[%clk 0:03:02.9]}
2... Nc6 {[%clk 0:02:51.8]} 3. Bb5 {[%clk 0:03:04.1]} 3... Nf6 {[%clk 0:02:52]}
4. d3 {[%clk 0:02:55]} 4... d6 {[%clk 0:02:41.9]} 5. O-O {[%clk 0:02:51.1]} 5...
Be7 {[%clk 0:02:42.7]} 6. c3 {[%clk 0:02:37.1]} 6... O-O {[%clk 0:02:42.8]} 7.
Re1 {[%clk 0:02:37.3]} 7... Bg4 {[%clk 0:02:36.6]} 8. Nbd2 {[%clk 0:02:36.9]}
8... Nb8 {[%clk 0:02:30.9]} 9. Nf1 {[%clk 0:02:37]} 9... c6 {[%clk 0:02:30.6]}
10. Ba4 {[%clk 0:02:37.8]} 10... Nbd7 {[%clk 0:02:24.3]} 11. h3 {[%clk 0:02:38]}
11... Bh5 {[%clk 0:02:23.2]} 12. Ng3 {[%clk 0:02:39.6]} 12... Bg6 {[%clk
0:02:24.2]} 13. Nh4 {[%clk 0:02:27.4]} 13... d5 {[%clk 0:02:10.5]} 14. Nhf5
{[%clk 0:02:20.4]} 14... Nc5 {[%clk 0:01:44.6]} 15. Bc2 {[%clk 0:02:19.9]} 15...
dxe4 {[%clk 0:01:23]} 16. dxe4 {[%clk 0:02:20]} 16... Qc7 {[%clk 0:01:23.6]} 17.
Bg5 {[%clk 0:02:09]} 17... Rad8 {[%clk 0:01:15.5]} 18. Qe2 {[%clk 0:02:09.4]}
18... Ne6 {[%clk 0:01:12.3]} 19. Nxe7+ {[%clk 0:01:37]} 19... Qxe7 {[%clk
0:01:14.2]} 20. Rad1 {[%clk 0:01:36.6]} 20... Nxg5 {[%clk 0:01:12.7]} 21. h4
{[%clk 0:01:32]} 21... Ne6 {[%clk 0:01:11.7]} 22. h5 {[%clk 0:01:30.6]} 22...
Nf4 {[%clk 0:01:09.2]} 23. Qf3 {[%clk 0:01:28.2]} 23... N6xh5 {[%clk 0:01:07.3]}
24. Nxh5 {[%clk 0:01:26.2]} 24... Bxh5 {[%clk 0:01:05.9]} 25. g4 {[%clk
0:01:27.2]} 25... Qg5 {[%clk 0:01:04]} 0-1

[Event "*** Titled Tuesday 3|2 Blitz"]
[Site "Chess.com"]
[Date "2016.02.02"]
[Round "8"]
[White "GMVar"]
[Black "Tesla37"]
[Result "1-0"]
[WhiteElo "2710"]
[BlackElo "2572"]
[TimeControl "180+2"]
[EndTime "12:44:23 PST"]
[Termination "GMVar won by resignation"]

1. d4 {[%clk 0:03:01.9]} 1... Nf6 {[%clk 0:03:00.4]} 2. c4 {[%clk 0:02:49.1]}
2... e6 {[%clk 0:03:01.2]} 3. Nf3 {[%clk 0:02:40.3]} 3... d5 {[%clk 0:03:01.6]}
4. Nc3 {[%clk 0:02:39.1]} 4... Bb4 {[%clk 0:03:01.4]} 5. Qc2 {[%clk 0:02:35.3]}
5... O-O {[%clk 0:02:56.7]} 6. Bd2 {[%clk 0:02:28.2]} 6... dxc4 {[%clk
0:02:53.7]} 7. e3 {[%clk 0:02:21.2]} 7... c5 {[%clk 0:02:54]} 8. a3 {[%clk
0:02:17]} 8... cxd4 {[%clk 0:02:44.8]} 9. axb4 {[%clk 0:02:15.9]} 9... dxc3
{[%clk 0:02:45.8]} 10. Bxc3 {[%clk 0:02:15.9]} 10... b5 {[%clk 0:02:34.8]} 11.
b3 {[%clk 0:02:16]} 11... cxb3 {[%clk 0:02:33.7]} 12. Qxb3 {[%clk 0:02:16.6]}
12... Bb7 {[%clk 0:02:25.8]} 13. Bxb5 {[%clk 0:02:14.5]} 13... Ne4 {[%clk
0:02:26.3]} 14. Be2 {[%clk 0:02:08.7]} 14... Nxc3 {[%clk 0:02:19.7]} 15. Qxc3
{[%clk 0:02:10]} 15... Qb6 {[%clk 0:02:14.1]} 16. O-O {[%clk 0:02:07.9]} 16...
Rc8 {[%clk 0:02:15]} 17. Qa3 {[%clk 0:02:04.8]} 17... a6 {[%clk 0:02:11.6]} 18.
Ne5 {[%clk 0:01:50.8]} 18... Nc6 {[%clk 0:02:10.5]} 19. Nd7 {[%clk 0:01:49.1]}
19... Qc7 {[%clk 0:02:06.8]} 20. Rfd1 {[%clk 0:01:46]} 20... Rd8 {[%clk
0:01:51.1]} 21. Nc5 {[%clk 0:01:41.4]} 21... Qb6 {[%clk 0:01:51.7]} 22. Bf3
{[%clk 0:01:35.8]} 22... Rac8 {[%clk 0:01:03.2]} 23. Nxb7 {[%clk 0:01:24.7]}
23... Rxd1+ {[%clk 0:01:00.6]} 24. Rxd1 {[%clk 0:01:23.4]} 24... Qxb7 {[%clk
0:01:02]} 25. Qc3 {[%clk 0:01:06]} 25... h6 {[%clk 0:00:23.8]} 26. Rc1 {[%clk
0:01:01.5]} 1-0